bitfinex/quotes_SOLUSD_20241007
["timestamp","ask_amount","ask_price","bid_price","bid_amount"]
[1728308117326,1.35955688,147.09,147.02,20.0]
[1728308118231,23.776884,147.08,147.02,21.36004864]
[1728308118397,1.35955688,147.07,147.02,21.36004864]
[1728308120613,1.35955688,147.07,147.02,20.0]
[1728308121013,1.35955688,147.07,147.02,21.36017469]
[1728308121602,1.35955688,147.07,147.02,20.0]
[1728308122128,1.35955688,147.07,147.02,21.36017419]
[1728308122305,1.35955688,147.07,147.02,20.0]
[1728308122506,1.35955688,147.07,147.02,21.36017507]
[1728308122908,25.13644088,147.09,147.02,21.36017507]
[1728308123730,25.13644088,147.09,147.02,20.0]
[1728308124045,31.93494088,147.09,147.02,20.0]
[1728308125536,25.13644088,147.09,147.02,21.36016288]
[1728308126009,1.35955688,147.09,147.02,20.0]
[1728308126347,1.35955688,147.09,147.03,19.43699462]
[1728308128118,1.35955688,147.09,147.05,19.43699462]
[1728308129329,6.2105,147.1,147.06,1.35989208]
[1728308129536,6.2105,147.1,147.05,19.43699462]
[1728308130240,6.2105,147.1,147.06,1.35972744]
[1728308130526,16.0316,147.12,147.07,19.43699462]
[1728308130735,16.0316,147.12,147.08,1.35955652]
[1728308131452,16.0316,147.12,147.07,19.43699462]
[1728308131827,16.0316,147.12,147.08,1.35961608]
[1728308132336,16.0316,147.12,147.09,19.43699462]
[1728308132514,6.2258,147.14,147.11,19.43699462]
[1728308132933,6.2258,147.14,147.09,19.43699462]
[1728308133446,1.35955688,147.13,147.08,20.0]
[1728308133638,1.35955688,147.13,147.07,19.43699462]
[1728308133815,1.35955688,147.13,147.08,1.35961288]
[1728308134518,1.35955688,147.13,147.07,19.43699462]
[1728308136315,1.35955688,147.13,147.08,1.35961283]
[1728308136511,1.35955688,147.13,147.07,19.43699462]
[1728308137638,1.35955688,147.13,147.06,20.0]
[1728308138527,8.15635688,147.13,147.06,20.0]
[1728308138720,1.35955688,147.13,147.06,20.0]
[1728308139850,1.35955688,147.13,147.07,1.35970417]
[1728308140623,1.35955688,147.13,147.07,20.79669686]
[1728308140829,6.2258,147.14,147.09,19.43699462]
[1728308141052,6.2258,147.14,147.1,1.35932127]
[1728308141230,6.2258,147.14,147.11,19.43699462]
[1728308141542,15.4595,147.16,147.12,1.35926093]
[1728308141739,16.81905688,147.16,147.12,1.35926093]
[1728308141947,16.81905688,147.16,147.11,19.43699462]
[1728308142126,16.81905688,147.16,147.12,1.35926555]
[1728308142340,16.81905688,147.16,147.11,19.43699462]
[1728308142535,6.7958,147.15,147.09,19.43699462]
[1728308142763,16.81905688,147.16,147.1,20.0]
[1728308142764,1.35955688,147.14,147.1,20.0]
[1728308142932,1.35955688,147.15,147.1,20.0]
[1728308143644,1.35955688,147.15,147.07,19.43699462]
[1728308143841,1.35955688,147.15,147.08,20.0]
[1728308147453,1.35955688,147.15,147.09,20.79646513]
[1728308147652,16.81905688,147.16,147.1,20.0]
[1728308147860,16.81905688,147.16,147.11,1.35929348]
[1728308148160,15.4595,147.16,147.11,20.7962881]
[1728308148357,15.4595,147.16,147.13,19.43699462]
[1728308148856,6.3341,147.17,147.08,20.0]
[1728308148857,6.3341,147.17,147.15,19.43699462]
[1728308149338,16.77555688,147.2,147.16,1.35889467]
[1728308149456,15.416,147.2,147.16,1.35889467]
[1728308149942,15.416,147.2,147.15,19.43699462]
[1728308150471,1.35955688,147.19,147.13,19.43699462]
[1728308150636,1.35955688,147.19,147.14,20.0]
[1728308151760,16.77555688,147.2,147.15,20.79600723]
[1728308151939,16.77555688,147.2,147.16,1.35888793]
[1728308152256,15.416,147.2,147.17,19.43699462]
[1728308152556,6.2102,147.21,147.18,1.35867737]
[1728308153146,22.9131,147.24,147.19,19.43699462]
[1728308153353,22.9131,147.24,147.2,1.35851057]
[1728308153652,22.9131,147.24,147.19,19.43699462]
[1728308153862,1.35955688,147.23,147.19,19.43699462]
[1728308154161,1.35955688,147.23,147.17,19.43699462]
[1728308154371,21.35955688,147.23,147.13,19.43699462]
[1728308154547,6.7933,147.21,147.14,20.0]
[1728308154763,8.15295688,147.2,147.14,20.0]
[1728308154949,1.35955688,147.19,147.14,20.0]
[1728308155470,15.0654,147.18,147.14,20.0]
[1728308155657,1.35955688,147.17,147.13,19.43699462]
[1728308155852,15.0654,147.18,147.12,20.0]
[1728308156046,15.0654,147.18,147.13,20.79605114]
[1728308156325,15.0654,147.18,147.15,19.43699462]
[1728308156602,15.5822,147.22,147.15,19.43699462]
[1728308156904,1.35955688,147.21,147.15,19.43699462]
[1728308157467,8.15285688,147.21,147.14,20.0]
[1728308157666,8.15285688,147.21,147.15,1.35897884]
[1728308157987,1.35955688,147.21,147.15,20.79597346]
[1728308158968,8.15255688,147.21,147.15,19.43699462]
[1728308159194,6.7935,147.2,147.13,20.0]
[1728308159444,1.35955688,147.19,147.13,20.0]
[1728308159549,1.35955688,147.2,147.13,20.0]
[1728308160574,1.35955688,147.21,147.14,20.79599381]
[1728308161263,8.15255688,147.21,147.13,20.0]
[1728308163228,15.5822,147.22,147.18,19.43699462]
[1728308163393,15.5822,147.22,147.19,1.35856518]
[1728308163966,6.4924,147.24,147.2,19.43699462]
[1728308164283,6.4924,147.24,147.15,0.12549]
[1728308164284,16.3973,147.26,147.22,19.43699462]
[1728308164482,16.3973,147.26,147.23,1.35818111]
[1728308165577,6.3159,147.28,147.24,19.43699462]
[1728308165668,6.3159,147.28,147.25,1.35804826]
[1728308165864,16.59045688,147.3,147.26,19.43699462]
[1728308166070,6.4922,147.32,147.27,1.35789257]
[1728308166305,6.4922,147.32,147.26,19.43699462]
[1728308166657,1.35955688,147.31,147.26,19.43699462]
[1728308167562,1.35955688,147.31,147.24,19.43699462]
[1728308167770,1.35955688,147.31,147.25,20.0]
[1728308167976,6.7889,147.3,147.25,20.0]
[1728308168179,1.35955688,147.29,147.25,20.0]
[1728308168466,8.14915688,147.29,147.23,20.0]
[1728308168675,15.5078,147.28,147.18,19.43699462]
[1728308168887,1.35955688,147.27,147.18,19.43699462]
[1728308169058,1.35955688,147.27,147.2,19.43699462]
[1728308169262,1.35955688,147.27,147.21,1.35836823]
[1728308169567,1.35955688,147.27,147.2,19.43699462]
[1728308169767,8.14995688,147.27,147.2,19.43699462]
[1728308169983,13.0423,147.26,147.21,20.0]
[1728308170191,1.35955688,147.25,147.18,19.43699462]
[1728308170487,1.35955688,147.25,147.19,1.35856393]
[1728308170892,8.15075688,147.25,147.19,1.35856393]
[1728308171187,1.35955688,147.25,147.19,1.35856393]
[1728308171363,6.7922,147.23,147.14,19.43699462]
[1728308171576,6.7922,147.23,147.12,15.5208]
[1728308171577,6.793,147.21,147.12,34.95779462]
[1728308171814,1.35955688,147.2,147.12,19.43699462]
[1728308172091,8.15305688,147.2,147.12,19.43699462]
[1728308172189,7.74525688,147.2,147.13,1.35896129]
[1728308172573,7.74525688,147.2,147.14,19.43699462]
[1728308172889,7.74525688,147.2,147.15,1.35886636]
[1728308173187,1.35955688,147.22,147.16,19.43699462]
[1728308173391,15.9113,147.23,147.18,19.43699462]
[1728308173802,6.0408,147.24,147.2,19.43699462]
[1728308174021,15.368,147.27,147.22,19.43699462]
[1728308174175,15.368,147.27,147.23,1.35823643]
[1728308174379,15.368,147.27,147.24,19.43699462]
[1728308174583,6.1728,147.28,147.24,19.43699462]
[1728308175270,6.7907,147.26,147.21,20.0]
[1728308175539,1.35955688,147.25,147.21,20.0]
[1728308175874,1.35955688,147.26,147.21,20.0]
[1728308176069,1.35955688,147.26,147.21,1.35841266]
[1728308176277,1.35955688,147.27,147.22,19.43699462]
[1728308176831,1.35955688,147.27,147.21,20.0]
[1728308177005,1.35955688,147.27,147.22,1.35825877]
[1728308177512,1.35955688,147.27,147.2,21.35824717]
[1728308177888,1.35955688,147.27,147.2,20.0]
[1728308178296,7.53235688,147.28,147.21,1.48369167]
[1728308178494,6.1728,147.28,147.22,31.03329348]
[1728308178696,6.1728,147.28,147.23,21.35808543]
[1728308179210,1.35955688,147.27,147.21,0.12549]
[1728308179411,1.35955688,147.27,147.2,20.0]
[1728308180211,23.0102,147.26,147.17,20.0]
[1728308180414,8.15065688,147.25,147.17,20.0]
[1728308180891,8.15065688,147.25,147.16,20.0]
[1728308181098,6.7916,147.24,147.11,6.6017]
[1728308181291,1.35955688,147.23,147.14,31.03329348]
[1728308181492,13.2434,147.22,147.11,31.03329348]
[1728308181693,15.4233,147.2,147.11,31.03329348]
[1728308182604,1.35955688,147.19,147.12,21.35894707]
[1728308182804,15.4233,147.2,147.12,21.35894707]
[1728308182805,16.78285688,147.2,147.12,21.35894707]
[1728308183116,15.4233,147.2,147.13,1.35882315]
[1728308183318,15.4233,147.2,147.12,20.0]
[1728308183487,15.4233,147.2,147.11,31.03329348]
[1728308183694,15.4233,147.2,147.13,0.25098]
[1728308183892,1.35955688,147.19,147.12,23.776884]
[1728308184097,16.78285688,147.2,147.13,1.35892437]
[1728308184819,15.4233,147.2,147.13,21.35892437]
[1728308185894,15.4233,147.2,147.13,20.0]
[1728308187393,15.4233,147.2,147.14,0.12549]
[1728308187611,15.4233,147.2,147.14,1.35877742]
[1728308188118,15.4233,147.2,147.13,20.0]
[1728308188302,1.35955688,147.19,147.13,20.0]
[1728308188654,1.35955688,147.19,147.08,31.03329348]
[1728308188655,6.7948,147.17,147.08,31.03329348]
[1728308189015,23.3305,147.15,147.05,110.6150998]
[1728308189116,1.35955688,147.14,147.05,107.06496056]
[1728308190000,1.35955688,147.14,147.06,0.25098]
[1728308190192,1.35955688,147.14,147.06,24.027864]
[1728308190612,1.35955688,147.14,147.07,20.0]
[1728308191010,8.15615688,147.14,147.05,107.06496056]
[1728308191317,1.35955688,147.14,147.05,107.06496056]
[1728308191501,8.15585688,147.14,147.05,107.06496056]
[1728308191696,8.15585688,147.14,147.06,1.35964668]
[1728308191901,1.35955688,147.14,147.05,107.06496056]
[1728308192299,1.35955688,147.14,147.08,0.12549]
[1728308192513,1.35955688,147.14,147.07,20.0]
[1728308192822,1.35955688,147.14,147.08,1.3595431]
[1728308193000,8.15595688,147.14,147.06,20.0]
[1728308193401,6.7967,147.13,147.06,20.0]
[1728308193625,1.35955688,147.12,147.06,20.0]
[1728308194004,8.15665688,147.12,147.06,20.0]
[1728308194252,16.1744,147.1,147.05,76.03166708]
[1728308194415,1.35955688,147.09,147.05,76.03166708]
[1728308194831,17.53395688,147.1,147.06,1.36003028]
[1728308195003,17.53395688,147.1,147.06,1.35982815]
[1728308195203,17.53395688,147.1,147.05,76.03166708]
[1728308196086,16.1744,147.1,147.05,76.03166708]
[1728308196328,16.1744,147.1,147.06,1.35976273]
[1728308196907,17.53395688,147.1,147.05,76.03166708]
[1728308197716,16.1744,147.1,147.06,21.35979641]
[1728308198006,16.1744,147.1,147.06,20.0]
[1728308198829,16.1744,147.1,147.06,39.43449258]
[1728308200023,16.1744,147.1,147.06,20.0]
[1728308200229,17.53395688,147.1,147.05,76.03166708]
[1728308200536,16.1744,147.1,147.06,1.35985404]
[1728308200826,16.1744,147.1,147.05,76.03166708]
[1728308201031,17.53395688,147.1,147.05,76.03166708]
[1728308202739,16.1744,147.1,147.05,76.03166708]
[1728308202916,17.53395688,147.1,147.05,76.03166708]
[1728308204136,24.33205688,147.1,147.05,76.03166708]
[1728308204307,24.33205688,147.1,147.03,23.55013924]
[1728308204513,17.53395688,147.1,147.03,3.55013924]
[1728308204706,6.7985,147.09,147.03,3.55013924]
[1728308204913,1.35955688,147.08,147.03,3.55013924]
[1728308205633,8.15865688,147.08,147.03,3.55013924]
[1728308205871,8.15865688,147.08,147.02,3.55013924]
[1728308206722,8.15865688,147.08,147.03,3.55013924]
[1728308207330,8.15865688,147.08,147.01,23.65013924]
[1728308207541,6.7995,147.07,147.01,23.65013924]
[1728308207737,1.35955688,147.06,147.01,23.65013924]
[1728308208140,1.35955688,147.06,147.02,3.55013924]
[1728308208330,16.4007,147.04,147.02,3.55013924]
[1728308208541,17.76025688,147.04,147.03,3.55013924]
[1728308208892,6.8017,147.02,147.01,3.65013924]
[1728308209134,8.16125688,147.02,147.01,3.65013924]
[1728308209393,22.1953,147.01,146.98,0.8279988]
[1728308209634,1.35955688,147.0,146.98,0.8279988]
[1728308210323,8.16235688,147.0,146.98,0.8279988]
[1728308215028,1.35955688,147.0,146.98,0.8279988]
[1728308215842,22.1953,147.01,146.98,0.8279988]
[1728308215843,23.55485688,147.01,146.98,0.8279988]
[1728308216748,22.1953,147.01,146.98,0.8279988]
[1728308217255,1.35955688,147.0,146.98,0.8279988]
[1728308217951,22.1953,147.01,146.98,20.26249138]
[1728308218157,1.35955688,147.03,146.99,1.36051957]
[1728308218332,1.35955688,147.04,146.99,1.36051957]
[1728308218543,1.35955688,147.04,146.98,20.26249138]
[1728308218858,1.35955688,147.04,146.99,23.776884]
[1728308219357,1.35955688,147.04,147.0,1.36036214]
[1728308219745,22.178,147.05,147.0,20.79485472]
[1728308220734,22.178,147.05,147.0,19.43449258]
[1728308220951,1.35955688,147.04,147.0,19.43449258]
[1728308222354,22.178,147.05,147.01,23.776884]
[1728308222543,22.178,147.05,147.0,19.43449258]
[1728308222544,1.35955688,147.04,147.0,19.43449258]
[1728308223061,6.8014,147.03,147.01,2.19602687]
[1728308223237,1.35955688,147.02,147.01,7.10027848]
[1728308223444,1.35955688,147.04,147.01,14.20055697]
[1728308223649,1.35955688,147.04,147.02,7.10871483]
[1728308223833,1.35955688,147.04,147.01,19.43449258]
[1728308224033,22.178,147.05,147.01,19.43449258]
[1728308225342,15.7877,147.05,147.01,19.43449258]
[1728308225552,1.35955688,147.07,147.02,23.776884]
[1728308225752,1.35955688,147.07,147.01,19.43449258]
[1728308225941,1.35955688,147.07,147.02,1.36008557]
[1728308226135,24.05635688,147.09,147.05,19.43449258]
[1728308226444,16.5988,147.12,147.05,19.43449258]
[1728308226647,1.35955688,147.11,147.05,19.43449258]
[1728308227361,1.35955688,147.11,147.03,19.43449258]
[1728308227537,6.7983,147.1,147.01,19.43449258]
[1728308227865,1.35955688,147.09,147.03,19.43449258]
[1728308228067,1.35955688,147.1,147.05,19.43449258]
[1728308228261,1.35955688,147.1,147.03,19.43449258]
[1728308228471,1.35955688,147.1,147.04,21.35993778]
[1728308228841,1.35955688,147.1,147.04,20.0]
[1728308229061,1.35955688,147.11,147.04,20.0]
[1728308229463,1.35955688,147.11,147.05,1.35984003]
[1728308230249,1.35955688,147.11,147.04,20.0]
[1728308230780,1.35955688,147.11,147.05,20.79424822]
[1728308231573,17.95835688,147.12,147.07,19.43449258]
[1728308231872,17.95835688,147.12,147.08,1.3596711]
[1728308232583,16.64995688,147.16,147.09,19.43449258]
[1728308232883,16.64995688,147.16,147.1,1.35943769]
[1728308233762,16.64995688,147.16,147.11,19.43449258]
[1728308233963,16.64995688,147.16,147.12,1.35921237]
[1728308234270,16.64995688,147.16,147.11,19.43449258]
[1728308234486,16.64995688,147.16,147.12,1.35926341]
[1728308234671,15.2904,147.16,147.12,1.35926341]
[1728308234981,1.35955688,147.19,147.13,19.43449258]
[1728308235218,1.35955688,147.19,147.14,1.35907851]
[1728308235780,8.15385688,147.19,147.13,19.43449258]
[1728308236075,1.35955688,147.19,147.12,20.0]
[1728308236246,1.35955688,147.19,147.09,19.43449258]
[1728308236449,6.92019,147.18,147.1,21.35933154]
[1728308236644,1.35955688,147.17,147.11,19.43449258]
[1728308236889,1.35955688,147.18,147.13,19.43449258]
[1728308237297,8.15395688,147.18,147.13,19.43449258]
[1728308237475,8.15395688,147.18,147.11,19.43449258]
[1728308238674,1.35955688,147.18,147.11,19.43449258]
[1728308238876,6.7957,147.16,147.09,39.43449258]
[1728308239074,8.15575688,147.15,147.09,39.43449258]
[1728308239483,1.35955688,147.15,147.09,39.43449258]
[1728308239688,1.35955688,147.16,147.1,1.35932326]
[1728308240483,1.35955688,147.17,147.11,19.43449258]
[1728308240679,1.35955688,147.17,147.12,1.35917904]
[1728308240993,1.35955688,147.17,147.11,19.43449258]
[1728308241201,8.15435688,147.17,147.11,19.43449258]
[1728308241373,6.7956,147.16,147.11,19.43449258]
[1728308241570,1.35955688,147.15,147.11,19.43449258]
[1728308243801,1.35955688,147.16,147.11,19.43449258]
[1728308244184,8.15485688,147.16,147.11,19.43449258]
[1728308244398,8.15485688,147.16,147.07,19.43449258]
[1728308244399,1.35955688,147.16,147.07,19.43449258]
[1728308244589,6.7963,147.14,147.08,20.0]
[1728308244924,17.74565688,147.13,147.05,19.43449258]
[1728308245276,17.74565688,147.13,147.01,6.418]
[1728308245277,24.027864,147.12,147.03,19.43449258]
[1728308245418,1.35955688,147.11,147.03,19.43449258]
[1728308245607,6.7985,147.09,147.03,19.43449258]
[1728308245795,6.7985,147.09,147.01,6.418]
[1728308245796,1.35955688,147.08,147.01,19.43449258]
[1728308246302,6.7985,147.09,147.01,19.43449258]
[1728308246608,14.71715688,147.08,147.02,1.35997615]
[1728308246815,6.5583,147.08,147.02,1.35997615]
[1728308247186,6.5583,147.08,147.03,19.43449258]
[1728308247714,6.5583,147.08,147.04,1.3599749]
[1728308248201,6.5583,147.08,147.02,20.0]
[1728308248715,1.35955688,147.07,147.02,20.0]
[1728308249016,6.5583,147.08,147.03,19.43449258]
[1728308249191,7.91785688,147.08,147.04,1.35994007]
[1728308249389,1.35955688,147.07,147.01,19.43449258]
[1728308249686,1.35955688,147.07,147.02,20.0]
[1728308250110,7.91785688,147.08,147.03,1.36001563]
[1728308250421,7.91785688,147.08,147.03,20.79450821]
[1728308250715,6.5583,147.08,147.03,20.79450821]
[1728308250903,7.91785688,147.08,147.03,20.79450821]
[1728308251708,7.91785688,147.08,147.02,20.0]
[1728308251886,8.15915688,147.07,147.02,20.0]
[1728308252087,23.64875688,147.07,146.99,19.55998258]
[1728308252308,16.84915688,147.07,147.0,20.0]
[1728308253607,16.84915688,147.07,147.01,20.79459371]
[1728308254395,15.4896,147.07,147.03,19.43449258]
[1728308255110,15.4896,147.07,147.01,19.43449258]
[1728308255310,15.4896,147.07,146.98,20.8279988]
[1728308255311,16.84915688,147.07,146.98,20.8279988]
[1728308255652,6.8002,147.06,146.98,20.26249138]
[1728308255803,1.35955688,147.05,146.99,20.0]
[1728308256431,1.35955688,147.06,146.99,20.0]
[1728308256594,16.84915688,147.07,147.01,20.0]
[1728308256928,16.84915688,147.07,147.02,20.79455927]
[1728308257715,16.84915688,147.07,147.02,19.43449258]
[1728308258614,16.84915688,147.07,147.0,19.43449258]
[1728308258821,16.84915688,147.07,147.01,20.0]
[1728308259517,23.64865688,147.07,147.01,20.0]
[1728308259905,16.84915688,147.07,147.01,20.0]
[1728308260209,6.5583,147.08,147.04,19.43449258]
[1728308260415,6.5583,147.08,147.05,1.35986679]
[1728308260596,17.77305688,147.11,147.06,19.43449258]
[1728308260853,16.4135,147.11,147.08,19.43449258]
[1728308261226,16.4135,147.11,147.07,20.0]
[1728308261405,17.77305688,147.11,147.03,0.12549]
[1728308261736,17.77305688,147.11,147.05,20.0]
[1728308262028,17.77305688,147.11,147.04,19.43449258]
[1728308262519,1.35955688,147.1,147.04,19.43449258]
[1728308263043,1.35955688,147.1,147.05,1.35990285]
[1728308263231,6.799,147.08,147.02,20.0]
[1728308263521,6.7986,147.09,147.02,20.0]
[1728308263827,1.35955688,147.08,147.02,20.0]
[1728308264363,1.35955688,147.08,147.03,1.35999878]
[1728308264507,1.35955688,147.08,147.02,20.0]
[1728308265021,8.15855688,147.08,147.02,20.0]
[1728308265314,6.8007,147.05,146.98,0.8279988]
[1728308265515,1.35955688,147.04,146.98,0.8279988]
[1728308266104,1.35955688,147.05,146.98,20.26249138]
[1728308266814,1.35955688,147.05,146.99,20.0]
[1728308268628,1.35955688,147.05,147.0,1.36025224]
[1728308268810,1.35955688,147.05,146.99,20.0]
[1728308269857,24.027864,147.04,146.98,0.8279988]
[1728308270019,6.8021,147.02,146.98,0.8279988]
[1728308270214,1.35955688,147.01,146.98,0.8279988]
[1728308270415,15.0852,147.0,146.98,0.8279988]
[1728308270820,16.44475688,147.0,146.98,0.8279988]
[1728308271327,15.0852,147.0,146.98,0.8279988]
[1728308272818,6.4015,147.01,146.98,20.26249138]
[1728308273022,15.7114,147.04,146.99,1.36038343]
[1728308273534,15.7114,147.04,147.0,19.43449258]
[1728308273910,15.7114,147.04,147.01,1.36029988]
[1728308274268,15.6198,147.08,147.02,20.79473952]
[1728308274459,1.35955688,147.07,147.02,19.43449258]
[1728308275524,1.35955688,147.07,147.01,20.0]
[1728308275525,8.15905688,147.07,147.01,20.0]
[1728308275949,1.35955688,147.07,146.98,0.8279988]
[1728308276132,1.35955688,147.07,146.98,20.26249138]
[1728308276133,0.12549,147.06,146.98,20.26249138]
[1728308276438,28.15915688,147.07,147.0,19.43449258]
[1728308276948,21.35955688,147.07,147.0,19.43449258]
[1728308277734,28.15905688,147.07,147.0,19.43449258]
[1728308278221,15.6198,147.08,147.02,19.43449258]
[1728308278548,15.6198,147.08,147.0,19.43449258]
[1728308278549,15.6198,147.08,147.04,19.43449258]
[1728308278844,6.4643,147.09,147.04,19.43449258]
[1728308280235,6.4643,147.09,147.0,19.43449258]
[1728308280236,7.82385688,147.09,147.03,20.0]
[1728308280423,0.12549,147.08,147.01,20.0]
[1728308280745,1.35955688,147.07,147.0,19.43449258]
[1728308280953,8.15905688,147.07,147.0,19.43449258]
[1728308281318,1.35955688,147.08,147.02,19.43449258]
[1728308281529,6.4643,147.09,147.03,1.35999473]
[1728308281843,7.82385688,147.09,147.04,19.43449258]
[1728308282049,7.82385688,147.09,147.05,1.35990003]
[1728308282353,6.4643,147.09,147.06,1.35990003]
[1728308282526,6.4643,147.09,147.04,19.43449258]
[1728308282728,1.35955688,147.08,147.04,19.43449258]
[1728308283647,6.4643,147.09,147.04,19.43449258]
[1728308283845,6.4643,147.09,147.05,1.35990054]
[1728308284162,16.2833,147.12,147.08,19.43449258]
[1728308284333,17.64285688,147.12,147.08,19.43449258]
[1728308284835,16.2833,147.12,147.08,19.43449258]
[1728308285152,8.15725688,147.11,147.06,20.0]
[1728308285356,16.2833,147.12,147.06,20.0]
[1728308285665,6.4034,147.13,147.09,19.43449258]
[1728308285858,1.35955688,147.12,147.09,19.43449258]
[1728308286037,1.35955688,147.12,147.07,19.43449258]
[1728308287146,8.15705688,147.12,147.05,19.43449258]
[1728308287346,1.35955688,147.12,147.04,20.0]
[1728308287538,6.7977,147.11,147.05,19.43449258]
[1728308287733,1.35955688,147.1,147.06,20.0]
[1728308287942,8.15675688,147.12,147.06,20.0]
[1728308288246,6.7977,147.11,147.05,19.43449258]
[1728308288567,6.7985,147.09,147.04,20.0]
[1728308288744,1.35955688,147.08,147.04,20.0]
[1728308289365,1.35955688,147.08,147.01,19.43449258]
[1728308289579,8.15895688,147.08,147.02,20.0]
[1728308289860,8.15895688,147.08,146.99,19.43449258]
[1728308289861,13.3742,147.07,146.99,19.43449258]
[1728308290060,1.35955688,147.06,146.99,19.43449258]
[1728308290457,8.15955688,147.06,146.99,19.43449258]
[1728308290757,1.35955688,147.06,146.99,19.43449258]
[1728308291141,6.5744,147.07,147.01,19.43449258]
[1728308291342,1.35955688,147.06,147.01,19.43449258]
[1728308292157,1.35955688,147.06,146.99,19.43449258]
[1728308292462,1.35955688,147.06,147.0,20.0]
[1728308293544,1.35955688,147.06,147.01,1.36019895]
[1728308294164,6.5744,147.07,147.01,1.36019895]
[1728308294465,6.5744,147.07,147.01,19.43449258]
[1728308295248,6.5744,147.07,146.98,0.8279988]
[1728308295249,16.2175,147.1,147.05,19.43449258]
[1728308295451,17.57705688,147.1,147.06,1.35979095]
[1728308296851,16.2175,147.1,147.06,1.35979095]
[1728308297057,16.2175,147.1,147.06,21.35979095]
[1728308297293,24.33335688,147.14,147.09,19.43449258]
[1728308297453,1.35955688,147.13,147.09,19.43449258]
[1728308298142,1.35955688,147.13,147.07,19.43449258]
[1728308298356,8.15635688,147.13,147.07,19.43449258]
[1728308298541,1.35955688,147.13,147.06,20.0]
[1728308298746,6.7977,147.11,147.06,20.0]
[1728308298957,6.7973,147.12,147.06,20.0]
[1728308299157,1.35955688,147.11,147.06,20.0]
[1728308299376,1.35955688,147.11,147.05,19.43449258]
[1728308299864,1.35955688,147.11,147.03,19.43449258]
[1728308300074,1.35955688,147.11,146.96,259.0]
[1728308300075,6.7994,147.07,147.01,19.43449258]
[1728308300366,1.35955688,147.06,146.99,19.43449258]
[1728308300547,1.35955688,147.08,147.01,19.43449258]
[1728308300751,1.35955688,147.08,147.02,1.36006271]
[1728308301355,16.73595688,147.09,147.03,19.43449258]
[1728308301551,15.3764,147.09,147.03,19.43449258]
[1728308301748,15.3764,147.09,147.04,1.35982552]
[1728308301968,15.3764,147.09,147.03,19.43449258]
[1728308302473,1.35955688,147.08,147.03,19.43449258]
[1728308302767,16.73595688,147.09,147.04,1.3599172]
[1728308303360,16.73595688,147.09,147.03,19.43449258]
[1728308304068,16.73595688,147.09,147.04,1.35991643]
[1728308305065,16.73595688,147.09,147.03,19.43449258]
[1728308305455,23.53465688,147.09,147.03,19.43449258]
[1728308306575,16.73595688,147.09,147.03,19.43449258]
[1728308307271,16.73595688,147.09,147.02,20.0]
[1728308308154,23.902374,147.08,147.02,20.0]
[1728308308371,1.35955688,147.07,146.99,19.43449258]
[1728308309462,1.35955688,147.07,147.01,19.43449258]
[1728308309782,1.35955688,147.08,147.02,21.36005909]
[1728308310578,1.35955688,147.08,147.03,19.43449258]
[1728308310788,1.35955688,147.08,147.04,1.35999847]
[1728308311169,1.35955688,147.08,147.02,20.0]
[1728308312083,16.73595688,147.09,147.03,1.35999986]
[1728308312668,16.73595688,147.09,147.03,20.79449244]
[1728308312981,15.3764,147.09,147.04,20.0]
[1728308313081,15.3764,147.09,147.05,20.79430096]
[1728308313289,15.3764,147.09,147.04,20.0]
[1728308314165,15.3764,147.09,147.05,1.35984587]
[1728308314479,15.3764,147.09,147.05,1.35984122]
[1728308314787,42.4773,147.14,147.07,19.43449258]
[1728308314979,22.4773,147.14,147.09,19.43449258]
[1728308316899,16.3518,147.14,147.1,1.35928418]
[1728308317100,16.3518,147.14,147.09,19.43449258]
[1728308317893,21.35955688,147.17,147.09,19.43449258]
[1728308318189,1.35955688,147.17,147.11,19.43449258]
[1728308318388,21.35955688,147.17,147.12,1.35924895]
[1728308318691,1.35955688,147.17,147.12,1.35924895]
[1728308319778,1.35955688,147.17,147.11,19.43449258]
[1728308320365,1.35955688,147.17,147.12,1.35920675]
[1728308320612,21.6994,147.18,147.12,1.35920675]
[1728308321488,21.6994,147.18,147.13,19.43449258]
[1728308321672,21.6994,147.18,147.15,19.43449258]
[1728308321984,22.6243,147.22,147.16,1.3588954]
[1728308322293,1.35955688,147.21,147.16,1.3588954]
[1728308322638,1.35955688,147.21,147.15,19.43449258]
[1728308323035,22.6243,147.22,147.16,21.35870291]
[1728308323280,1.35955688,147.21,147.16,20.0]
[1728308323490,1.35955688,147.21,147.15,19.43449258]
[1728308324681,1.35955688,147.21,147.13,39.43449258]